{"text_format":"1","workbook":"xlsx","n_sheets":3,"sheets":["الاصناف","المرحل اليه","ورقة3"],"not_rendered":{"charts":0,"images":0,"macros":0,"external_links":0,"defined_names":0,"comments":0,"pivot_tables":0},"unopened":[],"bounds":{"document_bytes":16777216,"sheet_cells":100000,"rows_first":2000,"rows_last":500,"rows_between":2000,"halvings":0,"cell_chars":16384,"cell_head_chars":4096},"cells_cut":0,"cells_raw":0,"read":"whole","date_system":"1900"}

{"sheet":"الاصناف","index":0,"n_rows":500,"n_cols":54,"rows_kept":500,"cut":false,"hidden":false,"merged":[]}
[1425,null,null,null,null,null,null,null,null,null,null,null,null,null,null,null,null,null,null,null,null,null,null,null,null,null,null,null,null,null,null,null,null,null,null,null,null,null,null,null,null,null,null,null,null,null,null,null,null,null,null,null,null,{"$f":"COLUMN()","v":54}]
[null,0]
[null,"الصنف","الكميه","السعر","الاجمالى",null,"الكميه ","السعر المخفض",null,null,"الصنف","الكميه","السعر","الاجمالى","الكميه","السعر المخفض",null,"الصنف","الكميه","السعر","الاجمالى","الكميه","السعر المخفض",null,null,"الصنف","الكميه","السعر","الاجمالى","الكميه","السعر المخفض",null,null,"الصنف","الكميه","السعر","الاجمالى","الكميه","السعر المخفض"]
[null,"صنف 1",1,8.5,{"$f":"SUM(C4*D4+G4*H4)","v":16.5},0,1,8,null,null,"صنف 28",3,8,{"$f":"SUM(L4*M4+O4*P4)","v":52},4,7,null,"صنف",3,null,null,3,null,null,null,"صنف اخر",4,11,{"$f":"SUM(AA4*AB4+AD4*AE4)","v":84},4,10,null,null,"صنف جديد",5,5,{"$f":"SUM(AI4*AJ4+AL4*AM4)","v":47.5},5,4.5]
[null,"صنف 2",1,null,null,0,2,3,null,null,"صنف 29",3,null,null,null,13,null,"صنف",3,32,{"$f":"SUM(S5*T5+V5*W5)","v":186},3,30,null,null,"صنف اخر",4,17,{"$f":"SUM(AA5*AB5+AD5*AE5)","v":128},4,15,null,null,"صنف جديد",5,34,{"$f":"SUM(AI5*AJ5+AL5*AM5)","v":320},5,30]
[null,"صنف 3",1,null,null,null,null,null,null,null,"صنف 30",3,null,null,null,15,null,"صنف",null,null,null,null,null,null,null,"صنف اخر",null,null,null,null,null,null,null,"صنف جديد"]
[null,"صنف 4",null,null,null,null,null,null,null,null,"صنف 31",3,null,null,null,null,null,"صنف",null,null,null,null,null,null,null,"صنف اخر",null,null,null,null,null,null,null,"صنف جديد"]
[null,"صنف 5",null,null,null,null,null,null,null,null,"صنف 32",null,null,null,null,null,null,"صنف",null,null,null,null,null,null,null,"صنف اخر",null,null,null,null,null,null,null,"صنف جديد"]
[null,"صنف 6",null,null,null,null,null,null,null,null,"صنف 33",null,null,null,null,null,null,"صنف",null,null,null,null,null,null,null,"صنف اخر",null,null,null,null,null,null,null,"صنف جديد"]
[null,"صنف 7",null,null,null,null,null,null,null,null,"صنف 34",null,null,null,null,null,null,"صنف",null,null,null,null,null,null,null,"صنف اخر",null,null,null,null,null,null,null,"صنف جديد"]
["مكرونه","صنف 8",null,null,null,null,null,null,null,null,"صنف 35",null,null,null,null,null,null,"صنف",null,null,null,null,null,null,null,"صنف اخر",null,null,null,null,null,null,null,"صنف جديد"]
[null,"صنف 9",null,null,null,null,null,null,null,null,"صنف 36",null,null,null,null,null,null,"صنف",null,null,null,null,null,null,null,"صنف اخر",null,null,null,null,null,null,null,"صنف جديد"]
[null,"صنف 10",null,null,null,null,null,null,null,null,"صنف 37",null,null,null,null,null,null,"صنف",null,null,null,null,null,null,null,"صنف اخر",null,null,null,null,null,null,null,"صنف جديد"]
[null,"صنف 11",null,null,null,null,null,null,null,null,"صنف 38",null,null,null,null,null,null,"صنف",null,null,null,null,null,null,null,"صنف اخر",null,null,null,null,null,null,null,"صنف جديد"]
[null,"صنف 12",null,null,null,null,null,null,null,null,"صنف 39",null,null,null,null,null,null,"صنف",null,null,null,null,null,null,null,"صنف اخر",null,null,null,null,null,null,null,"صنف جديد"]
[null,"صنف 13",null,null,null,null,null,null,null,null,"صنف 40",null,null,null,null,null,null,"صنف",null,null,null,null,null,null,null,"صنف اخر",null,null,null,null,null,null,null,"صنف جديد"]
[null,"صنف 14",null,null,null,null,null,null,null,null,"صنف 41",null,null,null,null,null,null,"صنف",null,null,null,null,null,null,null,"صنف اخر",null,null,null,null,null,null,null,"صنف جديد"]
[null,"صنف 15",null,null,null,null,null,null,null,null,"صنف 42",null,null,null,null,null,null,"صنف",null,null,null,null,null,null,null,"صنف اخر",null,null,null,null,null,null,null,"صنف جديد"]
[null,"صنف 16",null,null,null,null,null,null,null,null,"صنف 43",null,null,null,null,null,null,"صنف",null,null,null,null,null,null,null,"صنف اخر",null,null,null,null,null,null,null,"صنف جديد"]
[null,"صنف 17",null,null,null,null,null,null,null,null,"صنف 44",null,null,null,null,null,null,"صنف",null,null,null,null,null,null,null,"صنف اخر",null,null,null,null,null,null,null,"صنف جديد"]
[null,"صنف 18",null,null,null,null,null,null,null,null,"صنف 45",null,null,null,null,null,18,"صنف",null,null,null,null,null,null,null,"صنف اخر",null,null,null,null,null,null,null,"صنف جديد"]
[null,"صنف 19",null,null,null,null,null,null,null,null,"صنف 46",null,null,null,null,null,null,"صنف",null,null,null,null,null,null,null,"صنف اخر",null,null,null,null,null,null,null,"صنف جديد"]
[null,"صنف 20",null,null,{"$f":"SUM(C23*D23+G23*H23)","v":0},null,null,null,null,null,"صنف 47",null,null,{"$f":"SUM(L23*M23+O23*P23)","v":0},null,null,null,"صنف",null,0,{"$f":"SUM(S23*T23+V23*W23)","v":0},null,null,null,null,"صنف اخر",null,null,null,null,null,null,null,"صنف جديد"]
[null,"صنف 21",null,null,0,null,null,null,null,null,"صنف 48",null,null,null,null,null,null,"صنف",null,0,0,null,null,null,null,"صنف اخر",null,null,null,null,null,null,null,"صنف جديد"]
[null,"صنف 22",null,null,0,null,null,null,null,null,"صنف 49",null,null,0,null,null,null,"صنف",null,0,0,null,null,null,null,"صنف اخر",null,null,null,null,null,null,null,"صنف جديد"]
[null,"صنف 23",null,null,0,null,null,null,null,null,"صنف 50",null,null,0,5,null,null,"صنف",null,null,0,null,null,null,null,"صنف اخر",null,null,null,null,null,null,null,"صنف جديد"]
[null,"صنف 24",null,null,0,null,null,null,null,null,"صنف 51",null,null,0,5,null,null,"صنف",null,null,0,null,null,null,null,"صنف اخر",null,null,null,null,null,null,null,"صنف جديد"]
[null,"صنف 25",null,null,0,null,null,null,null,null,"صنف 52",null,null,0,5,null,null,"صنف",null,null,0,null,null,null,null,"صنف اخر",null,null,null,null,null,null,null,"صنف جديد"]
[null,"صنف 26",null,null,0,null,null,null,null,null,"صنف 53",null,null,0,5,null,null,"صنف",null,null,0,null,null,null,null,"صنف اخر",null,null,null,null,null,null,null,"صنف جديد"]
[null,"صنف 27",null,2,0,null,null,2,null,null,"صنف 54",3,3,24,5,3,null,"صنف",null,4,0,null,null,null,null,"صنف اخر",null,null,null,null,null,null,null,"صنف جديد"]
[null,null,null,null,null,null,null,null,null,null,null,2]
[]
[]
[]
[]
[]
[]
[]
[]
[]
[]
[]
[]
[]
[]
[]
[]
[]
[]
[]
[]
[]
[]
[]
[]
[]
[]
[]
[]
[]
[]
[]
[]
[]
[]
[]
[]
[]
[]
[]
[]
[]
[]
[]
[]
[]
[]
[]
[]
[]
[]
[]
[]
[]
[]
[]
[]
[]
[]
[]
[]
[]
[]
[]
[]
[]
[]
[]
[]
[]
[]
[]
[]
[]
[]
[]
[]
[]
[]
[]
[]
[]
[]
[]
[]
[]
[]
[]
[]
[]
[]
[]
[]
[]
[]
[]
[]
[]
[]
[]
[]
[]
[]
[]
[]
[]
[]
[]
[]
[]
[]
[]
[]
[]
[]
[]
[]
[]
[]
[]
[]
[]
[]
[]
[]
[]
[]
[]
[]
[]
[]
[]
[]
[]
[]
[]
[]
[]
[]
[]
[]
[]
[]
[]
[]
[]
[]
[]
[]
[]
[]
[]
[]
[]
[]
[]
[]
[]
[]
[]
[]
[]
[]
[]
[]
[]
[]
[]
[]
[]
[]
[]
[]
[]
[]
[]
[]
[]
[]
[]
[]
[]
[]
[]
[]
[]
[]
[]
[]
[]
[]
[]
[]
[]
[]
[]
[]
[]
[]
[]
[]
[]
[]
[]
[]
[]
[]
[]
[]
[]
[]
[]
[]
[]
[]
[]
[]
[]
[]
[]
[]
[]
[]
[]
[]
[]
[]
[]
[]
[]
[]
[]
[]
[]
[]
[]
[]
[]
[]
[]
[]
[]
[]
[]
[]
[]
[]
[]
[]
[]
[]
[]
[]
[]
[]
[]
[]
[]
[]
[]
[]
[]
[]
[]
[]
[]
[]
[]
[]
[]
[]
[]
[]
[]
[]
[]
[]
[]
[]
[]
[]
[]
[]
[]
[]
[]
[]
[]
[]
[]
[]
[]
[]
[]
[]
[]
[]
[]
[]
[]
[]
[]
[]
[]
[]
[]
[]
[]
[]
[]
[]
[]
[]
[]
[]
[]
[]
[]
[]
[]
[]
[]
[]
[]
[]
[]
[]
[]
[]
[]
[]
[]
[]
[]
[]
[]
[]
[]
[]
[]
[]
[]
[]
[]
[]
[]
[]
[]
[]
[]
[]
[]
[]
[]
[]
[]
[]
[]
[]
[]
[]
[]
[]
[]
[]
[]
[]
[]
[]
[]
[]
[]
[]
[]
[]
[]
[]
[]
[]
[]
[]
[]
[]
[]
[]
[]
[]
[]
[]
[]
[]
[]
[]
[]
[]
[]
[]
[]
[]
[]
[]
[]
[]
[]
[]
[]
[]
[]
[]
[]
[]
[]
[]
[]
[]
[]
[]
[]
[]
[]
[]
[]
[]
[]
[]
[]
[]
[]
[]
[]
[]
[]
[]
[]
[]
[]
[]
[]
[]
[]
[]
[]
[]
[]
[]
[]
[]
[]
[]
[]
[]
[]
[]
[]
[]
[]
[]
[]
[]
[]
[]
[]
[null,null,null," "]
[null,null,null," "]
[null,null,null," "]
[null,null,null," "]
[null,null,null," "]
[null,null,null," "]
[null,null,null," "]
[null,null,null," "]

{"sheet":"المرحل اليه","index":1,"n_rows":0,"n_cols":0,"rows_kept":0,"cut":false,"hidden":false,"merged":[]}

{"sheet":"ورقة3","index":2,"n_rows":0,"n_cols":0,"rows_kept":0,"cut":false,"hidden":false,"merged":[]}